Cogmind - Beta 10.1 @@@ ROGUE MODE // 2020.09.23 @ 00:25:29 Player: FUTURIST Result: Destroyed by G-47 Trooper with Particle Gun Performance ------------- Evolutions (2) 1000 Regions Visited (3) 600 Robots Destroyed (23) 115 Value Destroyed (590) 590 Prototype IDs (1) 20 Alien Tech Used (0) 0 Bonus (0) 0 TOTAL SCORE: 2325 Bonus ------- None Cogmind --------- Core Integrity 0/550 Matter 259/300 Energy 100/100 System Corruption 0% Temperature Cool (14) Movement Core (550) Ox10 Location -8/Materials Parts ------- > --- POWER (2) -------- (None) > --- PROPULSION (4) --- (None) > --- UTILITY (3) ------ High-capacity Storage Unit Advanced Visual Processing Unit Improved Signal Interpreter > --- WEAPON (2) ------- (None) > --- INVENTORY (12) --- Heavy Ion Engine Faulty Cooled Ion Engine High-capacity Storage Unit Peak State ------------ > --- POWER ------------ Heavy Ion Engine Heavy Ion Engine > --- PROPULSION ------- Aluminum Leg Aluminum Leg Aluminum Leg Aluminum Leg > --- UTILITY ---------- High-capacity Storage Unit Advanced Visual Processing Unit Improved Signal Interpreter > --- WEAPON ----------- Light Assault Rifle Heavy Assault Rifle > --- INVENTORY -------- Heavy Ion Engine Cooled Ion Engine Aluminum Leg High-capacity Storage Unit Improved Light Cannon [Rating: 20] Favorites ----------- Power Heavy Ion Engine Engine Heavy Ion Engine Propulsion Aluminum Leg Leg Aluminum Leg Utility High-capacity Storage Unit Storage High-capacity Storage Unit Processor Improved Signal Interpreter Weapon Assault Rifle Energy Gun Medium Laser Ballistic Gun Assault Rifle Ballistic Cannon Improved Light Cannon Launcher Grenade Launcher Build | -11 -10 -9 -8 ------- Run | Scr Mat Mat Mat Slots Evolved 4 | . . 2 2 Power 1 | . . . 1 Propulsion 2 | . . 2 . Utility 1 | . . . 1 Weapon . | . . . . Parts Attached 36 | 8 5 18 5 Power 4 | 2 . 1 1 Engine 4 | 2 . 1 1 Core . | . . . . Reactor . | . . . . Propulsion 9 | 2 . 6 1 Treads . | . . . . Leg 9 | 2 . 6 1 Wheel . | . . . . Hover . | . . . . Flight . | . . . . Utility 8 | 1 4 1 2 Device . | . . . . Storage 4 | 1 3 . . Processor 4 | . 1 1 2 Hackware . | . . . . Protection . | . . . . Artifact . | . . . . Weapon 15 | 3 1 10 1 Energy Gun 2 | 2 . . . Energy Cannon . | . . . . Ballistic Gun 6 | 1 . 5 . Ballistic Cannon 4 | . . 3 1 Launcher 3 | . 1 2 . Special Weapon . | . . . . Impact Weapon . | . . . . Slashing Weapon . | . . . . Piercing Weapon . | . . . . Special Melee Weapon . | . . . . Unidentified Prototypes 1 | . . 1 . Parts Lost 17 | . . 7 10 Power 2 | . . . 2 Propulsion 9 | . . 4 5 Utility . | . . . . Weapon 6 | . . 3 3 Highest Loss Streak 6 | . . 4 6 Average Slot Usage (%) 89 | . 99 87 84 Engine 13 | . 14 11 16 Leg 31 | . 28 35 27 Storage 12 | . 18 11 9 Processor 12 | . 9 11 17 Ballistic Gun 12 | . 14 12 11 Ballistic Cannon 2 | . . 4 1 Launcher 3 | . 12 1 . Naked Turns . | . . . . Heaviest Build 74 | 13 74 47 53 Greatest Support 40 | 20 20 40 40 Greatest Overweight (x) 13 | 1 3 3 13 Average Overweight (x) 1 | . 1 1 1 Largest Inventory Capacity 20 | 6 20 12 12 Average Capacity 11 | 5 11 12 12 Most Carried 12 | 4 7 12 6 Average Carried 6 | 2 5 8 4 Final Capacity 12 | 6 12 12 12 Final Carried 7 | 2 7 7 3 Class Distribution -------------------- 68% | Mutant 31% | Scavenger-Mutant Dominant Class ---------------- Mutant | -10/Materials Mutant | -9/Materials Scavenger-Mutant | -8/Materials Resources | -11 -10 -9 -8 ----------- Run | Scr Mat Mat Mat Matter Collected 803 | 205 72 501 25 Remotely . | . . . . Salvage Created 651 | . 75 507 69 Parts 47 | . 9 34 4 Haulers Intercepted 1 | . . 1 . Recyclers Shooed 1 | . . 1 . Parts Field Recycled . | . . . . Retrieved Matter . | . . . . Parts Self-Destructed . | . . . . Prevented . | . . . . Kills | -11 -10 -9 -8 ------- Run | Scr Mat Mat Mat Combat Hostiles Destroyed 20 | . 4 15 1 Guns 13 | . 2 11 . Cannons 2 | . . 1 1 AOE 5 | . 2 3 . Classes Destroyed 5 | . 3 2 . Hauler 1 | . . 1 . Watcher 2 | . 1 . 1 Swarmer 7 | . 3 4 . Grunt 11 | . 1 9 1 Sentry 2 | . . 2 . Best Kill Streak 6 | . 3 6 2 Combat Bots Only 6 | . 3 6 1 Max Kills in Single Turn 2 | . 2 1 1 Gunslinging . | . . . . Exploded 2 | . 2 1 . Melee . | . . . . Uniques/NPCs Destroyed . | . . . . Combat | -11 -10 -9 -8 -------- Run | Scr Mat Mat Mat Damage Taken 2591 | . 158 988 1445 Core 825 | . 32 237 556 Absorbed by Shields . | . . . . Core Remaining (%) 75 | 100 87 40 . Volleys Fired 89 | 2 19 53 15 Largest 2 | 1 1 2 2 Hottest 59 | 50 30 43 59 Shots Fired 102 | 2 19 60 21 Gun 72 | 2 15 45 10 Cannon 20 | . . 9 11 Launcher 10 | . 4 6 . Special . | . . . . Kinetic 91 | 1 15 54 21 Thermal 1 | 1 . . . Explosive 10 | . 4 6 . Electromagnetic . | . . . . Robot Hit Streak 7 | 1 3 7 6 Robot Miss Streak 4 | 1 4 3 3 Penetration Max . | . . . . Secondary Targets . | . . . . Shots Hit Robots 60 | 1 9 35 15 Core Hits 42 | 1 6 28 7 Critical Hits . | . . . . Critical Kills . | . . . . Critical Parts Destroyed . | . . . . Melee Attacks . | . . . . Impact . | . . . . Slashing . | . . . . Piercing . | . . . . Sneak Attacks . | . . . . Combat Hostiles . | . . . . Follow-up Attacks . | . . . . Damage Inflicted 1106 | 14 222 700 170 Guns 503 | 14 73 373 43 Cannons 229 | . . 102 127 Explosions 374 | . 149 225 . Melee . | . . . . Ramming . | . . . . Kinetic 732 | 14 73 475 170 Thermal . | . . . . Explosive 374 | . 149 225 . Electromagnetic . | . . . . Impact . | . . . . Slashing . | . . . . Piercing . | . . . . Highest Corruption . | . . . . Average Corruption . | . . . . Corruption Purged . | . . . . Overload Shots . | . . . . Overflow Damage 7 | . . 7 . Projectiles 7 | . . 7 . Explosions . | . . . . Melee . | . . . . Knockbacks 2 | . . 2 . Impact . | . . . . Kinetic 2 | . . 2 . Secondary . | . . . . Self-Inflicted Damage 69 | . . 69 . Shots 2 | . . 2 . Rammed . | . . . . Targets Rammed . | . . . . Kicked . | . . . . Crushed . | . . . . Highest Temperature 180 | . 1 16 180 Average Temperature 40 | . 1 6 50 Received Heat Transfer 1140 | . 54 294 792 Siege Activations . | . . . . Robots Corrupted . | . . . . Combat Hostiles . | . . . . Parts Fried . | . . . . Impact Corruptions . | . . . . Robots Melted . | . . . . Combat Hostiles . | . . . . Parts Melted . | . . . . Heat Transferred . | . . . . Parts Sabotaged . | . . . . Parts Stolen . | . . . . Parts Stripped . | . . . . Power Chain Reactions . | . . . . Missiles Intercepted . | . . . . Alert | -11 -10 -9 -8 ------- Run | Scr Mat Mat Mat Peak Influence 331 | . 122 331 115 Initial 83 | . . 51 83 Average 101 | . 31 163 77 Maximum Alert Level 1 | . . 1 . Low Security (%) 90 | 100 100 80 100 Level 1 9 | . . 19 . Level 2 . | . . . . Level 3 . | . . . . Level 4 . | . . . . Level 5 . | . . . . High Security . | . . . . Max Security . | . . . . Squads Dispatched 6 | . 1 3 2 Investigation 1 | . . 1 . Extermination . | . . . . Reinforcement 5 | . 1 2 2 Assault . | . . . . Garrison . | . . . . Intercept . | . . . . Construction Impeded . | . . . . Haulers Reinforced . | . . . . Stealth | -11 -10 -9 -8 --------- Run | Scr Mat Mat Mat Distress Signals 2 | . . . 2 Communications Jammed . | . . . . Distress Signals . | . . . . Times Spotted 45 | . 7 25 13 Peak Tracking Total 8 | . 3 8 8 Tactical Retreats 3 | . . 2 1 Traps | -11 -10 -9 -8 ------- Run | Scr Mat Mat Mat Traps Triggered 1 | . . 1 . Indirectly . | . . . . Trap Hack Attempts . | . . . . Triggered . | . . . . Disarmed . | . . . . Reprogrammed . | . . . . Reused . | . . . . Traps Extracted . | . . . . Installed . | . . . . Triggered . | . . . . Machines | -11 -10 -9 -8 ---------- Run | Scr Mat Mat Mat Machines Disabled . | . . . . Max in Single Turn . | . . . . Machines Sabotaged . | . . . . Garrisons Compromised . | . . . . Overloaded Fab Kills . | . . . . Fab Network Shutdowns . | . . . . Hacking | -11 -10 -9 -8 --------- Run | Scr Mat Mat Mat Machines Accessed . | . . . . Terminals . | . . . . Fabricators . | . . . . Repair Stations . | . . . . Recycling Units . | . . . . Scanalyzers . | . . . . Garrison Access . | . . . . Total Hacks . | . . . . Successful . | . . . . Failed . | . . . . Catastrophic . | . . . . Database Lockouts . | . . . . Manual . | . . . . Terminals . | . . . . Fabricators . | . . . . Repair Stations . | . . . . Recycling Units . | . . . . Scanalyzers . | . . . . Garrison Access . | . . . . Terminal Hacks . | . . . . Fabricator Hacks . | . . . . Repair Station Hacks . | . . . . Recycling Unit Hacks . | . . . . Scanalyzer . | . . . . Garrison Access Hacks . | . . . . Unauthorized Hacks . | . . . . Terminals . | . . . . Fabricators . | . . . . Repair Stations . | . . . . Recycling Units . | . . . . Scanalyzers . | . . . . Garrison Access . | . . . . Data Cores Recovered . | . . . . Used . | . . . . Hacking Detections . | . . . . Full Trace Events . | . . . . Feedback Events . | . . . . Feedback Blocked . | . . . . Robot Schematics Acquired . | . . . . Robots Built . | . . . . Matter . | . . . . Time . | . . . . Total Robot Build Rating . | . . . . Part Schematics Acquired . | . . . . Parts Built . | . . . . Matter . | . . . . Time . | . . . . Total Part Build Rating . | . . . . Parts Repaired . | . . . . Time . | . . . . Parts Recycled . | . . . . Recycled Matter . | . . . . Retrieved Matter . | . . . . Retrieved Components . | . . . . Parts Scanalyzed . | . . . . Part Schematics Acquired . | . . . . Parts Damaged . | . . . . Bothacking | -11 -10 -9 -8 ------------ Run | Scr Mat Mat Mat Used RIF Installer . | . . . . Robots Hacked . | . . . . Non-combat . | . . . . Combat . | . . . . Robot Hacks Applied . | . . . . Relay Couplers Released . | . . . . Robots Rewired . | . . . . Allies Hacked . | . . . . Hacks Repelled . | . . . . Allies | -11 -10 -9 -8 -------- Run | Scr Mat Mat Mat Total Allies . | . . . . Largest Group . | . . . . Highest-Rated Group . | . . . . Highest-Rated Ally . | . . . . Total Orders . | . . . . Ally Attacks . | . . . . Total Damage . | . . . . Kills . | . . . . Allies Corrupted . | . . . . Allies Melted . | . . . . Intel | -11 -10 -9 -8 ------- Run | Scr Mat Mat Mat Robot Analysis Total . | . . . . Derelict Logs Recovered . | . . . . Drone Launches . | . . . . Drone Recoveries . | . . . . Exploration | -11 -10 -9 -8 ------------- Run | Scr Mat Mat Mat Turns Passed 1092 | 69 273 516 234 Spaces Moved 512 | 45 135 223 109 Core 12 | 10 . . 2 Treads . | . . . . Legs 500 | 35 135 223 107 Wheels . | . . . . Hover . | . . . . Flight . | . . . . Fastest Speed 50 | 50 120 120 150 Average Speed 158 | 110 165 158 171 Slowest Speed 700 | 120 210 210 700 Overloaded Moves . | . . . . Propulsion Burnouts . | . . . . Robots Hopped . | . . . . Cave-ins Triggered . | . . . . Exploration Rate (%) 20 | 3 37 24 18 Regions Visited 3 Branch Regions . Pre-discovered Areas . | . . . . Known Exits Taken 1 | . . 1 . Unknown Exits Taken 2 | 1 1 . . Scrap Searched . | . . . . Spaces Dug . | . . . . Terrain Destroyed 68 | . 33 35 . Melee . | . . . . Projectile . | . . . . AOE 68 | . 33 35 . Terrain Rammed . | . . . . Walls Destroyed . | . . . . Machines Disabled . | . . . . Actions | -11 -10 -9 -8 --------- Run | Scr Mat Mat Mat Total 690 | 62 164 328 136 Wait 17 | . . 11 6 Move 509 | 44 134 222 109 Hop . | . . . . Pick Up 30 | 7 6 16 1 Fast Attach 1 | 1 . . . Attach 22 | 6 1 11 4 Detach 3 | 1 . 2 . Swap 13 | 1 4 7 1 Drop 6 | . . 6 . Fire 89 | 2 19 53 15 Melee . | . . . . Ram . | . . . . Kick . | . . . . Crush . | . . . . Escape Stasis . | . . . . Rewire . | . . . . Trap . | . . . . Miscellaneous . | . . . . Route ------- -11/Scrapyard -10/Materials -9/Materials -8/Materials History --------- Turn | Location | Event 22 | -11/Scrapyard | Discovered new exit (range 14) 70 | -11/Scrapyard | Entered Materials 300 | -10/Materials | Build established: Mutant 303 | -10/Materials | Discovered new exit (range 16) 343 | -10/Materials | Entered another Materials area 343 | -9/Materials | Evolved 2 slots: Propulsion x2 638 | -9/Materials | Core integrity fell below 50% 682 | -9/Materials | Lost 4 parts (2n2w) 836 | -9/Materials | Discovered new exit (range 15) 857 | -9/Materials | Identified exit to Materials 859 | -9/Materials | Entered another Materials area 859 | -8/Materials | Evolved 2 slots: Power x1, Utility x1 1070 | -8/Materials | Lost 6 parts (4n2w) 1083 | -8/Materials | Core integrity fell below 50% 1091 | -8/Materials | Core integrity fell below 20% 1093 | -8/Materials | Destroyed by G-47 Trooper with Particle Gun Last Messages --------------- M010. 00957_ K-01 Serf collects debris. 00973_ W-25 Informer sends out distress signal. 00974_ O-16 Technician sends out distress signal. 00974_ O-16 Technician: "IFF HANDSHAKE FAILED. SECURING TERMINAL." 00976_ K-01 Serf collects debris. 00977_ ALERT: Hostiles spotted, dispatching reinforcements to Terminal M006. 00978_ Hvy. Assault Rifle destroyed. 01005_ W-25 Informer destroyed. 01019_ G-47 Trooper destroyed. 01020_ Aluminum Leg destroyed. 01031_ Imp. Light Cannon destroyed. 01032_ Lgt. Assault Rifle destroyed. 01034_ Acquired 25 matter. 01037_ Aluminum Leg destroyed. 01074_ Hvy. Ion Engine destroyed. 01074_ Electrolysis Chamber disabled. 01075_ Aluminum Leg destroyed. 01080_ Hvy. Ion Engine destroyed. Map ----- +----------------------------------------------------+ | | | ??#############??????????????????????????????????? | | ??! ??????????????????????????????????? | | ?# #?????????????????????????????????? | | ?# """"" """"" #?????????????????????????????????? | | ?# """"" """"" #?????????????????????????????????? | | ?# """"" """"" #?????????????????????????????????? | | ?# #?????????????????????????????????? | | ########+###############+#???????????????????????? | | #??????????????????????? | | ?????????????????????? | | #??????????????????????? | | #+########+##### ######????????????????????????? | | ??# #?? #?????????????????????????????? | | """##""" #????????????????#######??????????? | | | """##""" #???????????????## #??????????? | | """##""" #???????????????? #??????????? | | ## #???????????????? T #??????????? | | = ##""" #????????????????? ??????????#? | | #######""" ###############??? ???????"" #? | | ??????#""" # r #???# #??????""" #? | | ??????# # """ """ #???# #??????""" #? | | ??????#######+## """g""" #???# #????? +? | | ????????????# ## """ "" #???# #????? ?? | | ????????????# ## "T" ggg g #???# #???? "T"??? | | ????????????# ## g@ #???# #???? "????? | | ??????????### #########+######??## ##?? ?????? | | ??????????# #???# ####### ###+####### | | ??????????# ##### | | ??????????# T T !%= | | ??????????# ##### [ | | ??????????# #???# ####### #### ##### | | ??????????###+###???#######?????## #??????????? | | ??????????? ?????????????????#! !#????????? | | ??????????# #???????????????#! !#????????? | | ??????????# #???????????????##!!!!##????????? | | ??????????# #????????????????######?????????? | | ??????????# "T" #???????????????????????????????? | | ??????????# """ #???????????????????????????????? | | ??????????########???????????????????????????????? | | ?????????????????????????????????????????????????? | | ?????????????????????????????????????????????????? | | ?????????????????????????????????????????????????? | | ?????????????????????????????????????????????????? | | ?????????????????????????????????????????????????? | | ?????????????????????????????????????????????????? | | ?????????????????????????????????????????????????? | | ?????????????????????????????????????????????????? | | ?????????????????????????????????????????????????? | | ?????????????????????????????????????????????????? | +----------------------------------------------------+ Best States ------------- Heat Dissipation 31 Energy Generation 23 Energy Capacity 460 Matter Stores 300 Matter Capacity 300 Sight Range 20 Terrain Scan Density 60 Evasion (%) 40 Item Schematics ----------------- None Robot Schematics ------------------ None Fabricated ------------ Nothing Alien Tech Used ----------------- None Achievements -------------- None Challenges ------------ None Game ------ Seed CoolantEtherialHammer Manual? 0 Play Time 00:22:50 Cumulative 3.4 hours Start 2020.09.23 @ 00:04:19 End 2020.09.23 @ 00:25:29 Sessions 1 Manual Loads 0 Difficulty Rogue Special Mode None Game No. 23 Rogue 23 Adventurer 0 Explorer 0 Win Type - Total 0 Types 0/0/0/0/0/0/0/0/0 Lore% 0 Gallery% 8 Achievement% 2 Wizard Run 0 Options --------- ASCII 0 Keyboard 0 Movement Mouse Keybinds 0 Fullscreen 1 Font 18/SmallcapsGlow Map View 76x50 Tactical HUD 1 Map Filters NONE Filters NONE Steam 1 RUN: 1e085b3c-8558-4cd9-9841-ca4fd251e033